Workbook

Sheet 汇总表
A1: 2025年“F”项目土石方、挡墙、箱涵、管涵劳务及措施项目报价清单
A2: 序号 | B2: 项目名称 | C2: 招标控制价 （元） | D2: 投标报价 （元） | E2: 备注
A3: 1 | B3: 分部分项工程 | C3: ='清单1（分部分项工程）'!G33 -> 829623.39
A4: 2 | B4: 措施项目工程 | C4: ='清单2（措施项目工程）'!G9 -> 898444.80
B5: 合计： | C5: =C3+C4 -> 1728068.19 | D5: =D3+D4 -> 0.00

Sheet 清单1（分部分项工程）
A1: 2025年“F”项目土石方、挡墙、箱涵、管涵劳务报价清单
A2: 序号 | B2: 项目名称 | C2: 项目特征 | D2: 单位 | E2: 暂定工程量 | F2: 金额（元） | H2: 金额（元）
F3: 全费用单价限价 | G3: 合价 | H3: 班组所报单价 | I3: 合价 | J3: 备注
A4: 一、土石方工程
A5: 1 | B5: 管沟、基槽、基坑土石方挖方 | C5: 1.承包工作范围：完成本项目管沟、基槽、基坑等全部土石方开挖工程，包含但不限于：土石方开挖、石方破碎、场内就近堆放；开挖土石类别综合地勘资料考虑，所有工序相关费用均包含在综合单价中。 2.开挖技术要求：挖填标高均需满足设计要求，误差控制在设计标高 ±5cm 内；开挖及场内运输方式由承包人自行确定；开挖方案、边坡施工防护、周边管线 / 构筑物 / 建筑物保护措施须经业主审批，施工须满足安全文明施工相关规范及规定，相关费用已包含在投标报价中。 3.涵洞技术参数与检测要求：涵洞地基承载力要求：按结构设计规范执行，涵洞顶覆土深度 h≤70cm 时，地基承载力≥250kPa；覆土深度 0.7~2.0m 时，≥200kPa；覆土深度 2.0~4.0m 时，≥250kPa；覆土深度 4.0~6.0m 时，≥300kPa；覆土深度≥6.0m 时，≥350kPa；以上检测、复检、送样检测费用，均由承包人全额承担。 4.其他费用与责任约定：临边及孔洞防护、进出车辆冲洗、场内外路面保洁、作业人员劳保防护用品、临时用水用电（含水电费用）、安全文明施工措施等全部相关费用，均由承包人承担并计入投标报价；因现场超挖、欠挖造成的全部损失，由承包人全额承担；施工机械进出场（含多次进出场）费用已综合计入报价，发包人不另行支付。 5.履约与调价约定：施工全过程须满足城管、环保相关规范要求；为保障施工工期、满足环保要求产生的夜间施工措施费、赶工费等全部费用，均已包含在综合单价中，合同履约过程中不接受任何调价申请。 6.工程量计量规则：按测绘开挖工程量结合现场收方数据，以立方米（m³）为单位计算 | D5: m3 | E5: 1000.00 | F5: 10.00 | G5: =F5*E5 -> 10000.00
A6: 2 | B6: 管沟、基槽、基坑土石方回填 | C6: 1.承包工作范围：完成本项目管沟、基槽、基坑等全部土石方回填工程，包含但不限于：土石方开挖、转运、回填；红线范围内取土回填转运； 2..填方来源约定：本工程填方土源为项目红线内原有土石方，场内运距综合考虑（就近取土），相关费用已计入综合单价，发包人不另行计量支付。 3.回填技术参数与检测要求：回填应按设计及规范分层压实，以上所有工程内容的检测、复检、送样检测费用，均由承包人全额承担。 4.其他费用与责任约定：临边及孔洞防护、进出车辆冲洗、场内外路面保洁、作业人员劳保防护用品、临时用水用电（含水电费用）、安全文明施工措施等全部相关费用，均由承包人承担并计入投标报价；因现场超挖、欠挖造成的全部损失，由承包人全额承担；施工机械进出场（含多次进出场）费用已综合计入报价，发包人不另行支付。 5.履约与调价约定：施工全过程须满足城管、环保相关规范要求；为保障施工工期、满足环保要求产生的夜间施工措施费、赶工费等全部费用，均已包含在综合单价中，合同履约过程中不接受任何调价申请。 6.工程量计量规则：按测绘回填工程量结合现场收方数据，以立方米（m³）为单位计算 | D6: m3 | E6: 1000.00 | F6: 8.00 | G6: =F6*E6 -> 8000.00
A7: 3 | B7: 箱涵、管涵、挡墙基底人工捡平 | C7: 1.边坡及基地人工捡平：箱涵、管涵、挡墙基底人工捡平 2.做法：满足设计及现行施工技术、质量验收规范要求 3.计算规则：按垫层面积计算 | D7: m2 | E7: 5000.00 | F7: 4.00 | G7: =F7*E7 -> 20000.00
A8: 二、特殊路基处理
A9: 4 | B9: 20cm厚砂垫层 | C9: 1.位置：片石换填区域顶部 2.材质：石粉砂 3.厚度：压实后完成厚度20cm 4.压实度要求：压实系数不小于0.95 5.做法：满足设计及现行施工技术、质量验收规范要求 | D9: m3 | E9: 463.29 | F9: 180.00 | G9: =F9*E9 -> 83392.20
A10: 5 | B10: 不透水性土工布 | C10: 1.材质要求：不透水性土工布 2.铺设位置：砂砾石层上方 3.搭接量、层间附加层、加强层计入本项目综合单价内,结算时不单独计算该部分工程量。 4.工程量计算规则：以现场实际收方为准 | D10: m2 | E10: 9484.31 | F10: 6.50 | G10: =F10*E10 -> 61648.02
A11: 三、混凝土挡土墙
A12: 6 | B12: 混凝土挡土墙（混凝土甲供） | C12: 1.混凝土强度等级：混凝土挡土墙（混凝土甲供） 2.变形缝：单列 3.砼浇筑采用的机械种类及方式：承包人自行考虑，泵车、天泵费用由发包人承担，承包人负责混凝土运输道路及浇筑场地的修整，费用由承包人综合考虑在报价中； 4.分层浇筑所需措施费用由承包人自行考虑 5.做法：满足设计及现行施工技术、质量验收规范要求 | D12: m3 | E12: 3177.12 | F12: 35.00 | G12: =F12*E12 -> 111199.20 | J12: 砼甲供 损耗4%
A13: 7 | B13: 沥青麻絮变形缝 | C13: 1.材质：沥青麻絮 2.缝宽：20~30mm 3.设置要求：挡墙每隔10~15m或地质变化较大处设置沉降缝,缝宽2~3cm,用沥青麻絮三面填塞,填塞深度不小于15cm设置变形缝产生的措施费由承包人综合考虑在投标报价中。 4.工程量计算规则：按挡土墙变形缝两侧及顶部长度计算，以现场实际收方为准 | D13: m | E13: 1539.83 | F13: 30.00 | G13: 46194.90
A14: 8 | B14: 粘土胶泥防渗层 | C14: 1.铺设位置：挡墙墙背碎石过滤层下 2.铺设坡比：1:10 3.做法：满足设计及现行施工技术、质量验收规范要求 | D14: m3 | E14: 85.05 | F14: 50.00 | G14: 4252.50
A15: 9 | B15: 碎石反滤层及墙背回填 | C15: 1.规格：碎石反滤层及墙背回填 2.坡比：靠墙一侧坡比1:0.5 3.墙背回填：墙体应达到设计强度75%以上,方可进行墙背回填。墙背填料应符合规范要求。墙背回填填料与挡墙顶之间的高差需≤1.2m,并应分层回填分层填筑夯实,可采用便捷式振动夯或平板夯,且压实度≥94%。 3.其他：满足设计及现行施工技术、质量验收规范要求 | D15: m3 | E15: 863.73 | F15: 200.00 | G15: 172746.00
A16: 10 | B16: 泄水管 φ50PVC管 | C16: 1.泄水孔规格、材质：PVC管 φ50PVC（含管件） 2.布置间距：泄水孔预埋φ50mmPVC管,挡土墙采用2*2m梅花形布置,水平间距2m、垂直距离2m布置。泄水孔间距2~3m,上下交错布置，孔内预埋φ5cmPVC管,PVC管应长出墙背10cm,其端部用渗水土工布包裹（土工布单列）,泄水孔出口应保证排水顺畅 3.位置：墙身在填土线以上的部分或常水位以上的部分应分层设置泄水孔，衡重台处应增设一排泄水孔。当地下水较丰富地段,泄水孔应适当加密 4.做法：满足设计及现行施工技术、质量验收规范要求 | D16: m | E16: 421.05 | F16: 22.00 | G16: 9263.10
A17: 11 | B17: 过滤土工布（150g/m²） | C17: 1.材料类别：过滤土工布（150g/m²）； 2.满足设计及规范要求； 3.搭接量、层间附加层、加强层计入本项目综合单价内,结算时不单独计算该部分工程量。 4.土工布包裹PVC管等降效费由承包人综合考虑在报价中 5.其他：未尽事宜满足设计及现行技术、质量验收规范要求 | D17: m2 | E17: 600.44 | F17: 5.50 | G17: 3302.42
A18: 四、管涵
A19: 12 | B19: 管涵附属设施混凝土浇筑（混凝土甲供） | C19: 1.类型：混凝土管形基础、帽石、边沟跌井、护坡边沟截水墙、护坡边沟、混凝土一字墙身、混凝土一字墙基础、混凝土铺砌截水墙、阶梯急流槽/铺砌等 2.混凝土强度等级：综合（混凝土甲供） 3.砼浇筑采用的机械种类及方式：承包人自行考虑，泵车、天泵费用由发包人承担，承包人负责混凝土运输道路及浇筑场地的修整，费用由承包人综合考虑在报价中； 4.截面尺寸：详见设计图纸； 5.做法：满足设计及现行施工技术、质量验收规范要求 | D19: m3 | E19: 769.56 | F19: 35.00 | G19: =F19*E19 -> 26934.60 | J19: 砼甲供 损耗4%
A20: 13 | B20: C20混凝土铺砌（混凝土甲供） | C20: 1.混凝土强度等级：C20商品砼（混凝土甲供） 2.砼浇筑采用的机械种类及方式：承包人自行确定，泵车、天泵费用由发包人承担，承包人负责混凝土运输道路及浇筑场地的修整，费用由承包人综合考虑在报价中； 3.做法：满足设计及现行施工技术、质量验收规范要求 | D20: m3 | E20: 12.30 | F20: 35.00 | G20: 430.50 | J20: 砼甲供 损耗4%
A21: 14 | B21: D500承插钢筋混凝土管（管道甲供） | C21: 1.规格：D500承插钢筋混凝土管 II级（承插钢筋混凝土管甲供） 2.场内外二次及多次转运由承包人综合考虑 3.安装及吊装方式：由承包人综合考虑 4.接口处固定镀锌网，表面抹水泥砂浆密封 5.洞身每隔4-6米设置一道沉降缝,缝内填以沥青麻絮（另计） 6.做法：满足设计及现行施工技术、质量验收规范要求 | D21: m | E21: 116.45 | F21: 60.00 | G21: 6987.00 | J21: 承插钢筋混凝土管甲供
A22: 15 | B22: D750/800承插钢筋混凝土管（管道甲供） | C22: 1.规格：D750/800承插钢筋混凝土管 II级（承插钢筋混凝土管甲供） 2.场内外二次及多次转运由承包人综合考虑 3.安装及吊装方式：由承包人综合考虑 4.接口处固定镀锌网，表面抹水泥砂浆密封 5.洞身每隔4-6米设置一道沉降缝,缝内填以沥青麻絮（另计） 6.做法：满足设计及现行施工技术、质量验收规范要求 | D22: m | E22: 194.78 | F22: 70.00 | G22: 13634.60 | J22: 承插钢筋混凝土管甲供
A23: 16 | B23: D1000承插钢筋混凝土管（管道甲供） | C23: 1.规格：D1000承插钢筋混凝土管 II级（承插钢筋混凝土管甲供） 2.场内外二次及多次转运由承包人综合考虑 3.安装及吊装方式：由承包人综合考虑 4.接口处固定镀锌网，表面抹水泥砂浆密封 5.洞身每隔4-6米设置一道沉降缝,缝内填以沥青麻絮（另计） 6.做法：满足设计及现行施工技术、质量验收规范要求 | D23: m | E23: 171.74 | F23: 80.00 | G23: 13739.20 | J23: 承插钢筋混凝土管甲供
A24: 17 | B24: 沥青麻絮变形缝 | C24: 1.材质：沥青麻絮 2.缝宽：20~30mm 3.设置要求：洞身每隔4-6米设置一道沉降缝,缝内填以沥青麻絮的费用由承包人综合考虑在投标报价中。 4.工程量计算规则：按挡土墙变形缝两侧及顶部长度计算，以现场实际收方为准 | D24: m | E24: 141.41 | F24: 30.00 | G24: 4242.30
A25: 五、箱涵
A26: 18 | B26: 现浇构件钢筋制安型号综合（钢筋甲供） | C26: 1.钢筋种类、规格：钢筋规格综合考虑；（钢筋甲供） 2.钢筋连接方式：各种连接方式、套筒连接等承包人综合考虑在报价中 3.支撑钢筋等措施钢筋综合考虑 4.弧形构件钢筋增加的费用，由承包人综合考虑，进入综合单价中 5.发包人不提供钢筋加工场地，承包人须自行场外加工并运输至施工现场，钢筋加工、运输及场内二次转运等所有相关费用均已包含在综合单价中。 6.发包人不提供水电接入口，需承包人自备发电机进行加工及施工，该费用由承包人综合考虑在投标报价中 7.做法：满足设计及现行施工技术、质量验收规范要 | D26: t | E26: 71.23 | F26: 1800.00 | G26: =F26*E26 -> 128214.00 | J26: 钢筋甲供 损耗7%
A27: 19 | B27: 混凝土箱体浇筑（混凝土甲供） | C27: 1.混凝土强度等级：C35混凝土箱体（混凝土甲供） 2.变形缝：洞身每隔4-6米设置一道沉降缝,缝内填以沥青麻絮（另计） 3.砼浇筑、养护采用的机械种类及方式：承包人自行考虑，泵车、天泵费用由发包人承担，承包人负责混凝土运输道路及浇筑场地的修整，费用由承包人综合考虑在报价中； 4.分层浇筑、养护所需措施费用由承包人自行考虑 5.做法：满足设计及现行施工技术、质量验收规范要求 | D27: m3 | E27: 429.56 | F27: 35.00 | G27: 15034.60 | J27: 砼甲供 损耗4%
A28: 20 | B28: 沥青麻絮变形缝 | C28: 1.材质：沥青麻絮 2.缝宽：20~30mm 3.设置要求：洞身每隔4-6米设置一道沉降缝,缝内填以沥青麻絮的费用由承包人综合考虑在投标报价中。 4.工程量计算规则：按挡土墙变形缝两侧及顶部长度计算，以现场实际收方为准 | D28: m | E28: 13.13 | F28: 30.00 | G28: 393.90
A29: 21 | B29: 箱涵附属设施混凝土浇筑（混凝土甲供） | C29: 1.类型：帽石、箱涵基础、锥坡截水墙、翼墙墙身等 2.混凝土强度等级：综合（混凝土甲供） 3.砼浇筑、养护采用的机械种类及方式：承包人自行考虑，泵车、天泵费用由发包人承担，承包人负责混凝土运输道路及浇筑场地的修整，费用由承包人综合考虑在报价中； 4.截面尺寸：详见设计图纸； 5.做法：满足设计及现行施工技术、质量验收规范要求 | D29: m3 | E29: 352.07 | F29: 35.00 | G29: 12322.45 | J29: 砼甲供 损耗4%
A30: 22 | B30: C20混凝土锥坡基础/铺砌（混凝土甲供） | C30: 1.混凝土强度等级：C20商品砼（混凝土甲供） 2.砼浇筑、养护采用的机械种类及方式：承包人自行确定，泵车、天泵费用由发包人承担，承包人负责混凝土运输道路及浇筑场地的修整，费用由承包人综合考虑在报价中； 3.做法：满足设计及现行施工技术、质量验收规范要求 | D30: m3 | E30: 66.68 | F30: 35.00 | G30: 2333.80 | J30: 砼甲供 损耗4%
A31: 23 | B31: 砂砾石箱涵垫层 | C31: 1.位置：箱涵基础垫层 2.材质：砂砾石 3.厚度：压实后完成厚度30cm，详见设计 4.计算规则：以图示尺寸按立方计算 5.做法：满足设计及现行施工技术、质量验收规范要求 | D31: m3 | E31: 159.50 | F31: 160.00 | G31: 25520.00
A32: 24 | B32: M10浆砌MU40片石护坡 | C32: 1.部位：箱涵护坡 2.材料品种、规格：MU40片石 3.砂浆强度等级：湿拌砌筑砂浆 M10 4.其它：未尽事宜满足设计及现行技术、质量验收规范要求 | D32: m3 | E32: 127.79 | F32: 390.00 | G32: 49838.10
A33: 合计 | G33: =SUM(G5:G32) -> 829623.39 | I33: =SUM(I5:I32) -> 0.00
A34: 注： 1、全费用综合单价，包括人工费、材料费、机械费、管理费、利润、措施费、大型机械进出场费、降排水费、规费、销项增值税和附加税、弃土费，满足环保、城管、政策要求所需的施工措施费及赶工等费用；以上工程量均为暂估量，土石方工程以测绘报告及现场收方单为准，不因结算工程量与合同工程量不一致而调整综合单价。 2.现场安全环保文明施工管理要求：（1）由公司统一发放印有“兴绿园林”字样和LOGO的安全帽和反光背心，班组按实名制领取，使用完后交回项目部，否则按采购费用扣款，其余参照合同附件中安全环保管理协议执行。（2）现场雾炮机由甲方提供，投标单位需安排人员管理使用，人工费、油费、维修费及管理费用综合考虑到投标报价中，不单独计取。 （3）防尘网由甲方提供，投标单位安排人员进行覆盖、回收、现场转移等，人工费综合考虑到投标报价中，不单独计取。（5）现场机械均实行一机一炮，每台挖掘机械均应配备随机雾炮机，工作时需保持雾炮机正常工作，加水、加油、维护等费用综合考虑在报价中。（6）机械配置需满足进度要求（7）发包人不提供水电接驳口及临时冲洗设施，由承包人自行考虑； 3.承包人应在报价前自行完成现场踏勘，充分掌握现场实际情况； 4.场外运输相关全部手续，由承包人自行负责办理； 5.场内二次及多次转运产生的全部费用，由承包人综合计入投标报价； 6.洗车池及洗车设备，由承包人综合计入投标报价； 7.临时道路修建及维护：出入口硬化由发包人负责，其余运输路线内由承包人考虑相应措施，包含在投标报价中； 8.甲供材料下车和保管：由承包人负责，超合同用量由承包人承担多出用量费用； 9.检测项及检测费：施工内容的检测（复检）费用和送样由承包人承担；（甲供材料检测费由发包人承担）； 10.专项方案论证相关费用由承包人承担； 11.发包人负责提供由土石方施工班组实施的基本临时施工便道，施工过程中承包人根据施工作业需要自行负责修整、维护。

Sheet 清单2（措施项目工程）
A1: 2025年“F”项目土石方、挡墙、箱涵、管涵措施项目报价清单
A2: 序号 | B2: 项目名称 | C2: 项目特征 | D2: 单位 | E2: 暂定工程量 | F2: 金额（元） | H2: 金额（元）
F3: 全费用单价限价 | G3: 合价 | H3: 班组所报单价 | I3: 合价 | J3: 备注
A4: 一、措施项目
A5: 1 | B5: 挡土墙模板（含双排脚手架） | C5: 1.支模高度：综合考虑，超高模板费用不再另计 2.模板类型：木模、组合钢模板、竹胶合板等综合； 3.对拉螺栓、表面处理、打样、成品保护费及加固模板费用由承包人承担 4.支架材料：钢管、竹、木支架综合，断面尺寸、材质、工艺等符合设计和施工验收规范要求； 5.包含承包人根据自身技术能力要求所采用的本工程垂直运输，以及其他全部总价措施费，脚手架由承包人综合考虑，承包人应根据施工经验，现场实际情况和企业自身情况综合报价，包含搭设脚手架需要的所有材料、人工、机械、辅助措施等，需满足监理、业主及相关规范要求，搭设前应编制专项方案并通过监理和业主审核认可后施工； 6.本项目承包人应根据施工经验,现场实际情况和企业自身情况综合报价,不论采用何种支模方式综合报价 | D5: m2 | E5: 5029.46 | F5: 80.00 | G5: =F5*E5 -> 402356.80
A6: 2 | B6: 锥坡基础/铺砌模板 | C6: 1.支模高度：综合考虑，超高模板费用不再另计 2.模板类型：木模、组合钢模板、竹胶合板等综合； 3.对拉螺栓、表面处理、打样、成品保护费及加固模板费用由承包人承担 4.支架材料：钢管、竹、木支架综合，断面尺寸、材质、工艺等符合设计和施工验收规范要求； 5.包含承包人根据自身技术能力要求所采用的本工程垂直运输，以及其他全部总价措施费； 6.本项目承包人应根据施工经验,现场实际情况和企业自身情况综合报价,不论采用何种支模方式综合报价 7.计算规则：按模板与混凝土接触面积计算 | D6: m2 | E6: 50.00 | F6: 60.00 | G6: =F6*E6 -> 3000.00
A7: 3 | B7: 管涵附属设施模板（含双排脚手架） | C7: 1.支模高度：综合考虑，超高模板费用不再另计 2.模板类型：木模、组合钢模板、竹胶合板等综合； 3.对拉螺栓、表面处理、打样、成品保护费及加固模板费用由承包人承担 4.支架材料：钢管、竹、木支架综合，断面尺寸、材质、工艺等符合设计和施工验收规范要求； 5.包含承包人根据自身技术能力要求所采用的本工程垂直运输，以及其他全部总价措施费，脚手架由承包人综合考虑，承包人应根据施工经验，现场实际情况和企业自身情况综合报价，包含搭设脚手架需要的所有材料、人工、机械、辅助措施等，需满足监理、业主及相关规范要求，搭设前应编制专项方案并通过监理和业主审核认可后施工； 6.本项目承包人应根据施工经验,现场实际情况和企业自身情况综合报价,不论采用何种支模方式综合报价 | D7: m2 | E7: 1340.41 | F7: 80.00 | G7: =F7*E7 -> 107232.80
A8: 4 | B8: 箱涵及附属设施混凝土模板（含双排及满堂脚手架） | C8: 1.支模高度：综合考虑，超高模板费用不再另计 2.模板类型：木模、组合钢模板、竹胶合板等综合； 3.对拉螺栓、表面处理、打样、成品保护费及加固模板费用由承包人承担 4.支架材料：钢管、竹、木支架综合，断面尺寸、材质、工艺等符合设计和施工验收规范要求； 5.包含承包人根据自身技术能力要求所采用的本工程垂直运输，以及其他全部总价措施费，脚手架由承包人综合考虑，承包人应根据施工经验，现场实际情况和企业自身情况综合报价，包含搭设脚手架需要的所有材料、人工、机械、辅助措施等，需满足监理、业主及相关规范要求，搭设前应编制专项方案并通过监理和业主审核认可后施工； 6.本项目承包人应根据施工经验,现场实际情况和企业自身情况综合报价,不论采用何种支模方式综合报价 | D8: m2 | E8: 4823.19 | F8: 80.00 | G8: =F8*E8 -> 385855.20
A9: 合计 | G9: =SUM(G5:G8) -> 898444.80 | I9: =SUM(I5:I8) -> 0.00
A10: 注： 1、全费用综合单价，包括人工费、材料费、机械费、管理费、利润、措施费、大型机械进出场费、降排水费、规费、销项增值税和附加税、弃土费，满足环保、城管、政策要求所需的施工措施费及赶工等所有费用；以上工程量均为暂估量，不因结算工程量与合同工程量不一致而调整综合单价。 2.现场安全环保文明施工管理要求：（1）由公司统一发放印有“兴绿园林”字样和LOGO的安全帽和反光背心，班组按实名制领取，使用完后交回项目部，否则按采购费用扣款，其余参照合同附件中安全环保管理协议执行。（2）现场雾炮机由甲方提供，投标单位需安排人员管理使用，人工费、油费、维修费及管理费用综合考虑到投标报价中，不单独计取。 （3）防尘网由甲方提供，投标单位安排人员进行覆盖、回收、现场转移等，人工费综合考虑到投标报价中，不单独计取。（5）现场机械均实行一机一炮，每台挖掘机械均应配备随机雾炮机，工作时需保持雾炮机正常工作，加水、加油、维护等费用综合考虑在报价中。（6）机械配置需满足进度要求（7）发包人不提供水电接驳口及临时冲洗设施，由承包人自行考虑； 3.承包人应在报价前自行完成现场踏勘，充分掌握现场实际情况； 4.场外运输相关全部手续，由承包人自行负责办理； 5.场内二次及多次转运产生的全部费用，由承包人综合计入投标报价； 6.洗车池及洗车设备，由承包人综合计入投标报价； 7.临时道路修建及维护：出入口硬化由发包人负责，其余运输路线内由投标人考虑相应措施，包含在投标报价中； 8.专项方案论证相关费用由承包人承担； 9.发包人负责提供由土石方施工班组实施的基本临时施工便道，施工过程中承包人根据施工作业需要自行负责修整、维护。
